[Event "45th FIDE Olympiad 2024"]
[Site "Budapest"]
[Date "2024.09.16"]
[Round "6.101"]
[White "Bogner, Sebastian"]
[Black "Atabayev, Saparmyrat"]
[Result "1-0"]
[ECO "C50"]
[WhiteElo "2545"]
[BlackElo "2516"]
[Annotator "TA"]
[PlyCount "99"]
[EventDate "2024.09.05"]
[EventType "team-tourn"]
[EventCountry "HUN"]
[SourceTitle "playchess.com"]
[Source "ChessBase"]
[SourceQuality "1"]
[WhiteTeam "Switzerland"]
[BlackTeam "Turkmenistan"]
[WhiteTeamCountry "SUI"]
[BlackTeamCountry "TKM"]
[TimeControl "40/5400+30:1800+30"]

{[%evp 10,99,18,21,19,16,12,11,17,7,4,23,3,7,20,0,8,4,0,-18,-17,-22,-26,-33,-22,-14,-6,-18,0,0,0,0,27,11,20,25,34,12,34,28,24,23,42,20,97,-56,-17,-55,23,36,56,55,54,52,75,37,78,84,71,79,85,75,85,88,91,49,56,25,50,27,24,0,39,31,20,8,8,8,178,151,155,167,194,177,922,939,1885,2055,1984,2100,29998,29999]} 1. e4 e5 2. Nf3 Nc6 3. Bc4 Nf6 4. d3 Bc5 5. Nc3 O-O 6. Bg5 Be7 7. h3 d6 8. a4 Be6 {The position is equal.} 9. Bxf6 Bxf6 10. Bxe6 fxe6 11. O-O Qe8 12. Nb5 Qd7 13. c3 Ne7 14. g3 Rf7 15. Kg2 Raf8 16. Na3 (16. Nxa7 c6 17. d4 exd4 18. cxd4 Ng6 $17) 16... Ng6 17. Nc4 Qd8 18. Nh2 Bg5 19. Qe2 Re8 20. Na3 {[%cal Bc4a3,Ba3c2,Bc2e1,Be1f3][%mdl 32]} d5 21. Nc2 Be7 22. Ne1 a5 23. Qg4 Bc5 24. Nef3 Rf6 25. h4 {[%cal Bh3h4,Bh4h5][%mdl 32] Threatening h5.} Ref8 {[%cal Og6f4]} 26. h5 Ne7 (26... Nh8 $1 $11 {remains equal.}) 27. d4 $2 (27. Nxe5 $16 {Strongly threatening f4.} Bxf2 28. Qe2) 27... exd4 $15 28. e5 Rf5 (28... Rh6 $1 $15 29. cxd4 Bb6) 29. cxd4 $11 Bb6 30. Nh4 {[%cal Oa1d1]} R5f7 31. Qxe6 {[%cal Oh4g6]} Nc6 32. N2f3 {aiming for Qg4.} Nxd4 33. Nxd4 Bxd4 34. f4 Re8 35. Qg4 {Nf5 is the strong threat.} Bxb2 36. Rab1 Bc3 37. e6 {[%mdl 1024] White has strong compensation.} Rf6 38. f5 {[%cal Oh4f3]} (38. Rxb7 Rfxe6 (38... Rexe6 39. Rfb1 $11) 39. Kh3 d4 $15) 38... Bb4 39. Nf3 Qd6 {Prevents Ne5.} 40. h6 Rxh6 41. Rh1 Qc5 $1 42. Rbc1 {[%cal Bb1c1,Bc1c7,Bc7d7,Bd7d6,Bd6d8][%mdl 32] Against Qc2+. Chess con chili.} Qe3 {[#] Threatens to win with ...Qe2+.} 43. Rxh6 $1 Qxh6 {This move loses the game for Black.} (43... Qxc1 $11 {and Black is okay.} 44. Rxh7 (44. Qh5 Qc2+ 45. Kf1 Qc1+ 46. Kg2 Qc2+ 47. Kf1 Qc1+ 48. Kg2 $11) 44... Kxh7 (44... Qb2+ 45. Kh3 $16) 45. Qh5+ Kg8 46. Qxe8+ Kh7 47. Qh5+ Kg8) 44. Rxc7 $18 Bd6 45. Rd7 {White is much more active.} (45. Rxb7 Rc8 46. Ng1 Rc4 $11) 45... Rc8 {( -> ...Rc2+)} 46. Qh4 $40 {[%mdl 128] White attacks with force.} (46. Rxd6 {is a self mate.} Rc2+) 46... Qc1 $2 (46... Qxh4 47. gxh4 (47. Nxh4 Be5 $16) 47... Bb4) 47. Rxd6 {Rd8+ would kill now.} Rc2+ {[#]} 48. Kh3 $1 {[%cal Rd6d8]} Qf1+ 49. Kg4 {[%cal Rd6d8]} h6 50. Rd8+ {Weighted Error Value: White=0.13 (very precise) /Black=0.28 (precise) .  Loses game:     	---       	Black=1      Mistake:       	White=1     	Black=3      Inaccurate:     	White=3     	Black=4      OK:         	White=16    	Black=10     Best:        	White=5     	Black=3      Strong:       	White=1     	Black=1} 1-0

[Event "45th FIDE Olympiad 2024"]
[Site "Budapest"]
[Date "2024.09.16"]
[Round "6.101"]
[White "Kabamwanishi, Mashala"]
[Black "Kim, Sanker"]
[Result "1-0"]
[WhiteElo "1914"]
[BlackElo "1564"]
[PlyCount "63"]
[EventDate "2024.09.05"]
[EventType "team-tourn"]
[EventCountry "HUN"]
[WhiteTeam "Democratic Republic of the Congo"]
[BlackTeam "Cambodia"]
[BlackTeamCountry "CMB"]
[TimeControl "40/5400+30:1800+30"]

1. e4 Nc6 2. d4 e5 3. d5 Nce7 4. Be2 Ng6 5. Nf3 Bc5 6. O-O Nf6 7. Nbd2 d6 8. c3 a5 9. Bb5+ Bd7 10. Qa4 O-O 11. Bxd7 Qxd7 12. Qxd7 Nxd7 13. a4 f5 14. Ng5 fxe4 15. Ndxe4 Nb6 16. Ne6 Rf7 17. N4xc5 dxc5 18. Nxc5 Nxd5 19. Nxb7 Ndf4 20. Nc5 Raf8 21. Bxf4 Nxf4 22. f3 h5 23. Rad1 h4 24. Nd3 e4 25. Nxf4 Rxf4 26. fxe4 Rxe4 27. Rxf8+ Kxf8 28. Rd4 Re2 29. b4 Rc2 30. bxa5 Rxc3 31. a6 Re3 32. Rd8+ 1-0

[Event "45th FIDE Olympiad 2024"]
[Site "Budapest"]
[Date "2024.09.16"]
[Round "6.102"]
[White "Annaberdiyev, Meylis"]
[Black "Pelletier, Yannick"]
[Result "0-1"]
[ECO "C02"]
[WhiteElo "2431"]
[BlackElo "2526"]
[Annotator "TA"]
[PlyCount "104"]
[EventDate "2024.09.05"]
[EventType "team-tourn"]
[EventCountry "HUN"]
[SourceTitle "playchess.com"]
[Source "ChessBase"]
[SourceQuality "1"]
[WhiteTeam "Turkmenistan"]
[BlackTeam "Switzerland"]
[WhiteTeamCountry "TKM"]
[BlackTeamCountry "SUI"]
[TimeControl "40/5400+30:1800+30"]

{[%evp 23,104,7,9,0,7,-8,-18,-16,-15,-14,0,0,0,-5,0,0,0,0,0,0,14,0,0,0,18,-7,0,0,0,0,0,-56,-43,-41,-35,-45,-33,-39,-46,-40,-33,-106,-117,-95,-78,-79,-79,-79,-79,-79,-79,-132,-57,-137,-150,-151,-146,-139,0,-272,-272,-268,-274,-274,-274,-273,-156,-261,-8,-514,-464,-1935,-1443,-2071,-2102,-29958,-29959,-29959,-29959,-29958,-29956,-29983,-29984]} 1. e4 e6 2. d4 d5 3. e5 c5 4. c3 Nc6 5. Nf3 Bd7 6. Be2 Nge7 7. O-O cxd4 8. cxd4 Nf5 9. Nc3 a6 {C02: French: Advance Variation.} 10. Bg5 Be7 {The modern move.} 11. Bxe7 Qxe7 12. Qd2 Rc8 13. Rae1 O-O 14. Bd1 Qb4 $146 ({Predecessor:} 14... Nh4 15. Nxh4 Qxh4 16. f4 f5 17. Na4 Qd8 18. Nc5 Qc7 19. b4 Nb8 20. Be2 b6 21. Nxa6 {1-0 Tari,A (2620)-Sipila,V (2429) EU-chT 24th Budva 2023 (4.2)}) 15. a3 Qb6 16. Ba4 Rfd8 17. Bxc6 $1 Bxc6 18. Rb1 Be8 19. Rfd1 Rc4 20. h4 Rdc8 21. g4 Nh6 22. Qf4 Qc7 23. Ne2 f6 24. exf6 (24. Rdc1 {simplifies} Qb8 25. Kg2 Bg6 26. Rxc4 Rxc4 27. Rc1) 24... Qxf4 25. Nxf4 Nxg4 (25... gxf6 {simplifies} 26. g5 Ng4 27. Ne1 fxg5 28. hxg5 h6) 26. fxg7 Rc2 27. Ne1 ({White should play} 27. Ng5 $11) 27... Rxf2 $15 28. Ned3 Rf3 29. Kg2 Re3 30. Rbc1 $1 Rc4 31. b3 Rc6 32. Rxc6 (32. Rg1 $15) 32... Bxc6 $17 33. Re1 Bb5 34. Rxe3 Nxe3+ 35. Kf2 Nf5 36. Nc5 Nxd4 37. a4 {[#]} (37. Ncxe6 Nxe6 38. Nxe6 Bd7) ({Better is} 37. Nfxe6 Nxe6 38. Nxe6) 37... Be8 (37... Bc6 $1 $17 {...e5 is the strong threat.} 38. Ncxe6 (38. Nfxe6 Nxe6 39. Nxe6 Bd7 $17) 38... Nxe6 39. Nxe6 Bd7) 38. Ncxe6 (38. Ke3 $1 $15 Nf5+ 39. Kd2) 38... Nxe6 $17 39. Nxe6 {[#]} Bd7 $1 40. Nc5 Bc6 (40... Bc8 $17 41. Ke3 Kxg7) 41. a5 $2 {[%mdl 8192]} (41. Ne6 $11 {and White stays safe.}) 41... Kxg7 $19 42. Kg3 Kf6 43. Kf4 d4 44. b4 Bd5 (44... Kg6 $19 45. Kg4 h5+ 46. Kf4 Kf6) 45. Nd3 (45. Ne4+ $17 Kg6 46. Nc5) 45... Ke6 $2 (45... Bh1 $19 {And now ...Ke6 would win.} 46. Nc5 Kg6) 46. Ne5 $2 {[%mdl 8192]} (46. Nc5+ $1 $11 Kf6 47. Nd7+ Kg6 48. Nc5) 46... Bg2 47. h5 (47. Nc4 $142) 47... Kd5 $19 48. h6 Bh1 49. Nd7 Kc4 50. Nf6 d3 (50... Kxb4 51. Nxh7 d3 (51... Kxa5 $2 52. Ng5 $18) 52. Ke3 $19) 51. Ke3 Kc3 (51... Kxb4 $2 52. Kxd3 Bf3 53. Nxh7 $18) 52. Nxh7 d2 (52... Kxb4 $2 {too greedy.} 53. Ng5 (53. Kxd3 Kxa5 54. Nf8 Kb6 $18) 53... Kxa5 54. h7 $18 (54. Kxd3 Bc6 $18)) 0-1

[Event "45th FIDE Olympiad 2024"]
[Site "Budapest"]
[Date "2024.09.16"]
[Round "6.103"]
[White "Georgiadis, Nico"]
[Black "Hommadov, Amanmuhammet"]
[Result "1-0"]
[ECO "E69"]
[WhiteElo "2510"]
[BlackElo "2181"]
[Annotator "TA"]
[PlyCount "83"]
[EventDate "2024.09.05"]
[EventType "team-tourn"]
[EventCountry "HUN"]
[SourceTitle "playchess.com"]
[Source "ChessBase"]
[SourceQuality "1"]
[WhiteTeam "Switzerland"]
[BlackTeam "Turkmenistan"]
[WhiteTeamCountry "SUI"]
[BlackTeamCountry "TKM"]
[TimeControl "40/5400+30:1800+30"]

{[%evp 19,83,36,37,33,37,18,52,47,54,43,30,43,49,50,39,39,68,73,56,52,56,86,69,81,93,108,115,127,179,111,127,115,108,105,120,118,150,61,138,78,74,72,94,70,268,262,287,244,1044,1050,1008,1052,1014,1013,949,918,29988,29989,29984,626,417,0,29989,29990,29991,29992]} 1. c4 Nf6 2. g3 g6 3. Bg2 Bg7 4. d4 O-O 5. Nc3 c6 6. e4 d6 7. h3 e5 8. Nge2 exd4 9. Nxd4 Nbd7 10. O-O Nc5 11. Re1 a5 {[%cal Ba7a5,Ba5a4,Ba4a3][%mdl 32]} 12. Bf4 Ne8 13. Be3 {White is slightly better.} a4 14. Nxc6 bxc6 15. Bxc5 a3 16. Bd4 (16. Bxa3 $2 Bxc3 (16... Rxa3 $2 17. e5 $19) 17. Re3 Rxa3 18. Rxc3 Rxc3 19. bxc3 Qa5 $19) (16. Rb1 {simplifies} Bxh3 17. Bxh3 dxc5 18. Qxd8 Rxd8 19. e5) 16... axb2 17. Rb1 {[%cal Ba1b1,Bb1b2,Bb2d2][%mdl 32]} Ra3 18. Re3 Bh6 19. f4 Be6 20. Rxb2 {[%cal Oc3d5]} Bxc4 {[#]} 21. Nd5 $1 Rxe3 (21... Rxa2 22. Rb8) 22. Nxe3 Be6 23. a4 {[%cal Ba2a4,Ba4a5][%mdl 32] White is more active.} Nc7 (23... Bg7 $16 24. Rb6 Qd7) 24. Bb6 ({White should try} 24. Kh2 $18) 24... Bg7 $16 25. Rd2 Qb8 26. a5 Nb5 27. Kh2 $36 {[%mdl 2048] White is in control.} c5 28. Qa4 (28. f5 $16 Nc3 29. Qf3) 28... Nd4 {[#]} (28... Nc3 $1 $14 29. Qc2 Nb5 (29... Bd4 $2 30. Rxd4 cxd4 31. Bxd4 $18)) 29. Nc4 (29. f5 $142 $1 {[%cal Rf5e6]} Bc8 30. Nd5) 29... h5 {[%cal Oh5h4]} 30. h4 Kh7 31. Rf2 Rc8 $2 {[#]} (31... Kg8 $14) 32. f5 $1 $18 {[%cal Bf4f5,Bf5g6][%mdl 544]} Bxc4 (32... gxf5 $2 33. exf5 Nxf5 34. Be4 $18) 33. Qxc4 Nc6 $2 (33... Rf8 34. f6 Bh6) 34. Qxf7 Ne5 {[%cal Bc6e5,Be5g4,Bg4f2,Bf2h3][%mdl 32]} 35. fxg6+ Kh8 36. Qf5 Ng4+ 37. Kg1 Nxf2 38. Qxh5+ (38. Qxf2 $2 Bd4 $19) 38... Kg8 39. Qd5+ (39. e5 $142 Ne4 40. Bxe4 (40. Qh7+ Kf8 $16) 40... Qa8 41. Bxa8 Rxa8 42. Qh7+ (42. exd6 Bd4+ 43. Kh1 Kg7 44. d7 Rh8) 42... Kf8 43. exd6 Rb8 44. Bxc5 (44. d7 Ke7 45. Qxg7+ Ke6 46. Qf7+ Kd6 47. g7 Ke5 48. Qf4+ Kd5 49. Qxb8 Kd4)) 39... Kh8 40. Qh5+ ({Don't take} 40. Kxf2 Rf8+ 41. Bf3 Be5 $18) (40. Qf5 $18 Bh6 41. Qd7 (41. Qxf2 Rf8 $18)) 40... Kg8 41. e5 Nh3+ 42. Kh2 {Weighted Error Value: White=0.46/Black=0.46.  Loses game:     	---       	Black=1      Mistake:       	White=3     	Black=3      Inaccurate:     	---       	Black=2      OK:         	White=11    	Black=13     Best:        	White=2     	Black=1      Brilliant:      	White=1     	---} 1-0

[Event "45th FIDE Olympiad 2024"]
[Site "Budapest"]
[Date "2024.09.16"]
[Round "6.104"]
[White "Shirliyev, Allayar"]
[Black "Kurmann, Oliver"]
[Result "1/2-1/2"]
[ECO "B21"]
[WhiteElo "2200"]
[BlackElo "2421"]
[Annotator "TA"]
[PlyCount "106"]
[EventDate "2024.09.05"]
[EventType "team-tourn"]
[EventCountry "HUN"]
[SourceTitle "playchess.com"]
[Source "ChessBase"]
[SourceQuality "1"]
[WhiteTeam "Turkmenistan"]
[BlackTeam "Switzerland"]
[WhiteTeamCountry "TKM"]
[BlackTeamCountry "SUI"]
[TimeControl "40/5400+30:1800+30"]

{[%evp 11,106,-7,-1,-10,0,-2,-6,-15,-12,-10,-9,-28,-27,-37,-41,-54,-32,-43,-50,-39,-25,-29,-45,-47,-26,-31,-38,-69,-74,-71,-78,-175,-168,-171,-168,-168,-171,-176,-170,-176,-176,-243,-162,-243,-234,-234,-233,-233,-241,-235,-229,-237,-231,-240,-216,-346,-346,-479,-476,-604,-602,-551,-364,-367,-362,-332,-150,-184,-173,-184,0,0,0,0,0,0,0,0,0,0,0,0,0,0,0,0,0,-20,-10,-32,-39,-23,-49,-60,0,0,0]} 1. e4 c5 2. Nc3 e6 3. f4 d5 4. Nf3 dxe4 5. Nxe4 Nc6 6. Bb5 Bd7 7. Qe2 {[%cal Of4f5]} Nh6 8. Bxc6 Bxc6 9. d3 Be7 10. Ne5 Rc8 11. Bd2 Nf5 12. Nxc6 Rxc6 13. Bc3 O-O 14. O-O $1 b5 15. b3 Nd4 16. Bxd4 cxd4 17. a4 b4 18. Rac1 Qc7 19. Qd1 Rc8 {[%cal Rc6c2]} 20. Nd2 Rxc2 21. Nc4 (21. Rxc2 $17 Qxc2 22. Nc4 Qxd1 23. Rxd1) 21... Rc3 $19 22. Rb1 g6 23. Rb2 h5 24. g3 Rd8 25. Re2 Rd5 26. h3 (26. Ref2 $142) 26... Rf5 {[#] Strongly threatening ...h4.} 27. Re5 (27. h4 $142) 27... Rxe5 28. fxe5 f5 29. h4 Bf8 30. Kh2 Bh6 31. Kh3 Kh7 32. Kh2 Qg7 33. Rf2 (33. a5 {was necessary.}) 33... g5 34. Qxh5 Rxd3 (34... Rxb3 35. hxg5 Qxg5 36. Qf7+ Kh8 (36... Bg7 $2 37. Rf4 $18) 37. Nb2 $17 (37. Qxe6 $2 Rxd3 38. Qc8+ Kh7 $19)) 35. hxg5 Qxg5 36. Qf7+ Bg7 37. Kh1 {[#] aiming for Rh2+.} Rd1+ (37... Rxb3 $2 {too greedy.} 38. Rh2+ $18 (38. Qxa7 Rxg3) (38. Qxa7 Rxg3)) 38. Kg2 Qh6 (38... Qg6 $19 {is more deadly.} 39. Qxg6+ Kxg6) 39. Rf1 $17 Rxf1 40. Kxf1 $19 {[%cal Of1g2][%mdl 4096] Endgame. KQB-KQN} d3 $2 (40... Qh3+ $19 41. Kf2 Qh2+ 42. Kf1 Qxg3 43. Qxe6 Qf3+ (43... Qxb3 44. Qxf5+ Kg8 45. Qc8+ Bf8 46. Qe6+ Kh8 47. Qf6+ Kg8 48. Qg5+ Kh7 49. Qh4+ Kg8 50. Qg4+ Bg7 51. Qe6+ Kh7 52. Qf5+ Kg8 53. Qc8+ Bf8 54. Qe6+ Kh7 55. Qf7+ Bg7 56. Qf5+ $11) 44. Kg1 d3 (44... Qxb3 45. Qxf5+ Kg8 46. Qe6+ Kh7 47. Qf5+ Kg8 48. Qe6+ Kh7 49. Qf5+ $11)) 41. Kg2 $1 $11 a6 {And now ...Qg6 would win.} 42. Qd7 d2 43. Nxd2 Qe3 44. Nc4 Qxb3 45. Qxe6 Qc2+ 46. Kh3 Qe4 47. Kh2 {Inhibits Qh1+.} b3 {Threatens to win with ...Qc2+.} 48. Qf7 $1 Qe2+ (48... Kh6 $5) 49. Kh3 Qg4+ 50. Kh2 Qg6 51. Qd5 Qh5+ 52. Kg1 Qg4 ({Black should play} 52... Qh3 $1 $15 53. Qd3 b2 54. Nxb2 Bxe5 55. Qd7+ Bg7) 53. Kf2 Qe4 {Black had all chances to win.   Weighted Error Value: White=0.18 (very precise) /Black=0.20 (precise) .  Missed win:     	---       	Black=2      Mistake:       	White=4     	Black=1      Inaccurate:     	White=2     	Black=1      OK:         	White=15    	Black=14     Best:        	White=5     	Black=4      Strong:       	White=3     	---} 1/2-1/2

[Event "45th FIDE Olympiad 2024"]
[Site "Budapest"]
[Date "2024.09.16"]
[Round "6.105"]
[White "Zambrana, Osvaldo"]
[Black "Supi, Luis Paulo"]
[Result "1/2-1/2"]
[ECO "C54"]
[WhiteElo "2405"]
[BlackElo "2570"]
[Annotator "TA"]
[PlyCount "164"]
[EventDate "2024.09.05"]
[EventType "team-tourn"]
[EventCountry "HUN"]
[SourceTitle "playchess.com"]
[Source "ChessBase"]
[SourceQuality "1"]
[WhiteTeam "Bolivia"]
[BlackTeam "Brazil"]
[WhiteTeamCountry "BOL"]
[BlackTeamCountry "BRA"]
[TimeControl "40/5400+30:1800+30"]

{[%evp 84,164,-64,-64,-22,-24,-23,-23,-64,-64,-8,-8,-6,-64,-64,-64,0,0,0,-64,-64,-64,-64,-64,-64,-64,-64,-64,-64,-64,-64,-64,-64,-64,0,-64,0,-64,-64,-64,-64,-64,-64,-64,-64,-64,0,-64,0,-64,-64,-64,-64,-64,0,-64,-64,-64,-64,-64,-64,-64,0,-64,0,-64,-64,-64,-64,-64,0,-64,0,-64,0,-64,-64,-64,0,-66,-66,-66,0]} 1. e4 e5 2. Nf3 Nc6 3. Bc4 Nf6 4. d3 Bc5 5. O-O d6 6. c3 a6 7. a4 h6 8. Na3 {C54: Giuoco Piano: 4 c3 Nf6, main lines with 5 d4 and 5 d3.} O-O 9. Nc2 Ba7 10. Be3 Bb8 {10...Re8 is the modern continuation.} 11. a5 Ne7 12. Re1 Ng6 $146 ({Predecessor:} 12... c6 13. d4 Nxe4 14. dxe5 d5 15. Bd3 Bc7 16. Nd2 Nxd2 17. Bxd2 c5 18. b4 c4 {½-½ Grobler,D (2244)-Chazalette,J (2345) W-ch WS/M/629 email 2017}) 13. Bb3 Re8 14. Qb1 Nh5 15. Na3 Nhf4 16. Bd1 d5 17. exd5 Qxd5 18. Bxf4 Nxf4 19. d4 e4 20. Bc2 Bf5 21. Nh4 Bh7 22. f3 f5 23. g3 Nh3+ 24. Kf1 Kh8 25. Qa2 Qd7 26. Nc4 Ba7 27. Qa4 c6 28. Kg2 g5 29. Kxh3 gxh4 30. f4 Qg7 31. Bd1 hxg3 32. hxg3 h5 33. Rg1 Re6 34. Be2 Rg8 35. Ne5 Bb8 36. Qb3 Rf6 37. c4 Bxe5 38. dxe5 Rg6 39. Qc3 h4 40. e6 Qxc3 41. bxc3 hxg3 42. e7 {[#]} Rh6+ (42... g2 $1 $17 43. e8=Q Rxe8 44. Rxg2) 43. Kg2 $15 Re6 (43... Rh2+ $6 44. Kf1 $14) 44. Rad1 Rxe7 45. c5 Bg6 46. Rh1+ Rh7 (46... Kg7 $1 $15) 47. Rxh7+ $11 ({Much less strong is} 47. Bc4 Rf8 48. Kxg3 (48. Rxh7+ Bxh7 49. Rd6 Bg8 $15) 48... Rxh1 49. Rxh1+ Bh7 $11 (49... Kg7 50. Rb1 $14)) 47... Bxh7 48. Rd7 ({White should play} 48. Bc4 $1 $11 Rf8 49. Kxg3) 48... Rg7 $15 49. Rd8+ Rg8 50. Rd7 Rg7 51. Rd8+ $1 Bg8 52. Rf8 Rf7 $1 53. Rxf7 Bxf7 54. Kxg3 Kg7 55. Kf2 Kf6 56. Ke3 Bb3 57. Kd4 Ke6 58. Bh5 Kf6 59. Be2 $1 Ke6 60. Bh5 Bc2 61. Be2 Bd3 62. Bd1 (62. Bxd3 $2 {is the wrong capture.} exd3 63. Kxd3 Kd5 $19) 62... Bf1 63. Bb3+ Kf6 64. Ke3 Bg2 (64... Bh3 $15) 65. Bc4 (65. Kf2 $1 $11 Bf3 66. Bc2) 65... Bh3 ({Better is} 65... Bf3 $15) 66. Ba2 (66. Kf2 $1 $11) 66... Bg4 $15 67. Bb3 Bf3 68. Ba2 Bg4 69. Bb3 $1 Bh5 70. Bc4 Bg6 71. Bb3 Bf7 72. Bd1 Bg6 73. Bb3 $1 Bf7 74. Bd1 Ba2 75. Kd4 $1 Bb1 76. Ke3 Ba2 77. Kd4 $1 Bf7 78. Ke3 Ba2 79. Kd4 $1 Ke6 80. Be2 Bb3 81. Bh5 Ba4 82. Be2 Bb3 (82... Kf6 $15) 1/2-1/2

[Event "45th FIDE Olympiad 2024"]
[Site "Budapest"]
[Date "2024.09.16"]
[Round "6.106"]
[White "Fier, Alexandr"]
[Black "Gemy, Jose Daniel"]
[Result "1-0"]
[ECO "A19"]
[WhiteElo "2551"]
[BlackElo "2315"]
[Annotator "TA"]
[PlyCount "99"]
[EventDate "2024.09.05"]
[EventType "team-tourn"]
[EventCountry "HUN"]
[SourceTitle "playchess.com"]
[Source "ChessBase"]
[SourceQuality "1"]
[WhiteTeam "Brazil"]
[BlackTeam "Bolivia"]
[WhiteTeamCountry "BRA"]
[BlackTeamCountry "BOL"]
[TimeControl "40/5400+30:1800+30"]

{[%evp 20,99,19,23,29,16,31,22,17,20,22,13,18,17,11,15,24,36,38,29,32,-20,43,0,0,0,0,0,14,10,37,23,90,83,87,98,135,127,127,137,141,35,135,127,134,136,139,136,191,96,81,29,36,35,60,48,63,56,198,183,267,274,274,274,270,270,399,274,274,182,704,704,729,711,985,978,1234,1189,1380,1227,29972,29972]} 1. c4 Nf6 2. Nc3 e6 3. e4 {[%cal Be2e4,Be4e5][%mdl 32]} c5 4. e5 Ng8 5. Nf3 Nc6 6. d4 cxd4 7. Nxd4 Nxe5 8. Ndb5 a6 9. Nd6+ Bxd6 10. Qxd6 f6 11. Be3 {[%mdl 1024] White has compensation.} Ne7 12. Bb6 Nf5 13. Qb4 Nc6 {The position is equal.} 14. Qc5 Qe7 15. O-O-O Qxc5 16. Bxc5 d6 17. Ba3 {[%cal Oc3e4]} Ke7 18. Bd3 Nfd4 19. Rhe1 (19. Be4 $5) 19... Rd8 $1 20. f4 (20. Be4 $1 $14 Kf7 21. f4 (21. Bxh7 $2 g6 $19)) 20... Kf7 (20... Rb8 $11) 21. Ne4 (21. Bxh7 $2 g6 22. Ne4 Kg7 23. Bxd6 f5 (23... Kxh7 24. Bc7 $17) 24. Rxd4 (24. Bc7 $2 Rd7 $19) 24... Nxd4 $17) 21... d5 22. Nd6+ Kg8 23. b3 {[%cal Bb2b3,Bb3c4,Bc4c5][%mdl 32]} dxc4 24. bxc4 b5 25. Be4 {Threatens to win with Rxd4. A strong pair of Bishops.} b4 (25... f5 $11 26. Nxf5 (26. Rxd4 fxe4 27. Rdd1 e5 $11) 26... exf5 27. Bxc6 Nxc6 28. Rxd8+ Nxd8 29. Re8+ Kf7 30. Rxd8 bxc4) 26. Bxb4 $16 Nxb4 27. Rxd4 Rb8 28. a3 Nd5 29. c5 Nc7 30. Bc6 {White is much more active.} (30. Red1 $16) 30... Rb3 (30... Bb7 $1 $14 31. Bxb7 Rxb7) 31. Red1 $1 e5 32. fxe5 fxe5 33. R4d3 $36 {[%mdl 2048] Wards off Rc3+. White is on the roll.} Rb8 (33... Be6 $16 {was worth a try.}) 34. Re1 ({White should try} 34. Re3 $18 Bg4 35. Rf1) 34... Bf5 35. Be4 (35. Nxf5 $2 Rxd3 36. Rxe5 Rc3+ (36... Rxa3 $2 37. Nd6 $17) 37. Kd2 Rxa3 $19) ({White should play} 35. Bd5+ $16 Nxd5 36. Rxd5) 35... Bxe4 $11 36. Rxe4 Nb5 37. Rxe5 Nxd6 38. cxd6 $14 {[%mdl 4096] Endgame. Hoping for d7. KRR-KRR} (38. Rxd6 Rxd6 39. cxd6 Rc8+ 40. Kd2 Rd8 $11) 38... Rbc8+ {Loses the game.} (38... Rd7 $1 $14) 39. Kb2 $18 {aiming for d7.} Rc6 (39... Kf7 {was called for.} 40. Re7+ Kf6) 40. d7 Kf7 {[#] Prevents Re8} 41. Kb3 $1 Rc7 {[#]} 42. Red5 (42. Rf3+ Kg6 $16) 42... Ke6 (42... a5 {might work better.} 43. Ka4 (43. Rxa5 Rb8+ 44. Ka2 Rc2+ 45. Ka1 Rc1+ 46. Ka2 Rc2+ 47. Ka1 Rc1+ 48. Ka2 Rc2+ $11) 43... Rb7) 43. Rd6+ Ke7 {[%cal Rd8d7]} 44. Kb4 {[%cal Ob4a5] Strongly threatening Ka5!} ({Inferior is} 44. Rxa6 Rb8+ 45. Ka4 Rc4+ 46. Ka5 Rc5+ 47. Ka4 Rc4+ 48. Ka5 Rc5+ 49. Ka4 Rc4+ $11) 44... Rb7+ $2 (44... Rb8+ 45. Ka5 Kd8) 45. Kc5 Rb1 46. Rd1 ({Weaker is} 46. Rxa6 Rc1+ 47. Kb6 Rb8+ 48. Ka7 Rcb1 $16) 46... Rb5+ 47. Kc6 Re5 48. Kc7 a5 {[%cal Ba6a5,Ba5a4][%mdl 32]} 49. Rc6 {And now Rdd6 would win.} a4 50. Rdd6 {Weighted Error Value: White=0.22 (precise) /Black=0.49.  Mistake:       	White=4     	Black=8      Inaccurate:     	White=3     	Black=2      OK:         	White=9     	Black=11     Best:        	White=6     	Black=5      Strong:       	White=2     	Black=1} 1-0

[Event "45th FIDE Olympiad 2024"]
[Site "Budapest"]
[Date "2024.09.16"]
[Round "6.106"]
[White "Nicolas, Carbonell"]
[Black "Roberts, Gennard"]
[Result "0-1"]
[WhiteElo "1798"]
[BlackElo "1582"]
[PlyCount "120"]
[EventDate "2024.09.05"]
[EventType "team-tourn"]
[EventCountry "HUN"]
[WhiteTeam "Burkina Faso"]
[BlackTeam "Grenada"]
[WhiteTeamCountry "BUR"]
[BlackTeamCountry "GRA"]
[TimeControl "40/5400+30:1800+30"]

1. d4 Nf6 2. c4 g6 3. Nc3 Bg7 4. e4 d6 5. f4 c5 6. dxc5 Qa5 7. Bd2 Qxc5 8. Nf3 O-O 9. e5 dxe5 10. fxe5 Ng4 11. Ne4 Qc7 12. Bc3 Nxe5 13. Nxe5 Bxe5 14. Qf3 Nc6 15. O-O-O Bxc3 16. Nxc3 Be6 17. Be2 Rfd8 18. Nd5 Bxd5 19. Rxd5 Rxd5 20. Qxd5 Rd8 21. Qf3 Nd4 22. Qe3 Nxe2+ 23. Qxe2 b5 24. Re1 e6 25. Rd1 Rxd1+ 26. Kxd1 Qxc4 27. Qxc4 bxc4 28. Kc2 Kf8 29. Kc3 Ke7 30. Kxc4 Kd6 31. b4 e5 32. b5 e4 33. a4 e3 34. Kd3 Kc5 35. Kxe3 Kb4 36. Kd4 Kxa4 37. Kc4 f5 38. h4 h6 39. Kc5 Ka5 40. Kc4 g5 41. g3 gxh4 42. gxh4 f4 43. Kd4 Kxb5 44. Ke4 a5 45. Kxf4 Kb4 46. Kg4 a4 47. Kh5 a3 48. Kxh6 a2 49. Kh7 a1=Q 50. h5 Qa7+ 51. Kg6 Qb6+ 52. Kg7 Qc7+ 53. Kg6 Qg3+ 54. Kh7 Qc7+ 55. Kg6 Qd6+ 56. Kg7 Qe7+ 57. Kg6 Qe6+ 58. Kg7 Qe7+ 59. Kh6 Qf7 60. Kg5 Kc5 {0-} 0-1